Workbook

Sheet itemout
A1: 0 | B1: الصرف | J1: 0
A2: نوع الحركة | B2: صرف منتج تام | D2: الاذن اليدوي | E2: test | J2: 0
A3: اذن رقم | B3: =IFERROR(IF(B2= "صرف منتج تام",[1]setup!D4,IF(B2= "صرف تام ض",[1]setup!D11,IF(B2= "مردودات مبيعات",[1]setup!D13,[1]setup!D3))),[1]setup!D3) -> 260401 | D3: التعامل | J3: 0
A4: التاريخ | B4: =TODAY() -> 2026-04-29 | J4: 0
A5: كود العميل | B5: 350 | H5: =SUM(H8:H8) -> 620 | J5: 0
A6: اسم العميل | B6: =IFERROR(VLOOKUP(B5,[1]acc!B:C,2,FALSE),"") -> test 4me | E6: المندوب | J6: 0 | K6: صافي | N6: معامل التكاليف | O6: 0.09
A7: م | B7: كود الصنف | C7: اسم الصنف | D7: مواصفات | E7: الوحدة | F7: الكمية | G7: السعر | H7: القيمة | I7: العدد | J7: وزن الالف | K7: الكمية بالكيلو | L7: كود الخامة | M7: سعر الكيلو | N7: التكلفة المعيارية
A8: 1 | B8: 1 | C8: خامة pvc شرنك | F8: 20 | G8: 31 | H8: =F8*G8 -> 620 | K8: =IF(E8="كيلو",F8*1,IF(E8="طن",F8*1000,IF(E8="جرام",F8/1000,IF(E8="كرتونة",F8,IF(E8="كيس",F8*J8/1000,F8))))) -> 20 | M8: =IFERROR(IF(B$2="استلام خامات",(IF(E8="طن",G8/1000,IF(E8="كيلو",G8,IF(E8="جرام",G8*1000,IF(E8="كيس",H8/K8,IF(E8="كرتونة",G8,F8)))))),VLOOKUP(L8,[1]items!B:I,5,FALSE)),"") ->  | N8: =IFERROR(IF(B$2="خامات",M8,K8*M8*(1+O$6)),0) -> 0
A9: 2 | B9: 2 | C9: خامات استرتش | F9: 15 | G9: 33 | H9: =F9*G9 -> 495 | K9: 15 | M9: =IFERROR(IF(B$2="استلام خامات",(IF(E9="طن",G9/1000,IF(E9="كيلو",G9,IF(E9="جرام",G9*1000,IF(E9="كيس",H9/K9,IF(E9="كرتونة",G9,F9)))))),VLOOKUP(L9,[1]items!B:I,5,FALSE)),"") ->  | N9: 0
A10: 3 | B10: 3 | C10: كرتون | F10: 10 | G10: 35 | H10: =F10*G10 -> 350 | K10: 10 | M10: =IFERROR(IF(B$2="استلام خامات",(IF(E10="طن",G10/1000,IF(E10="كيلو",G10,IF(E10="جرام",G10*1000,IF(E10="كيس",H10/K10,IF(E10="كرتونة",G10,F10)))))),VLOOKUP(L10,[1]items!B:I,5,FALSE)),"") ->  | N10: 0
A11: 4 | B11: 4 | C11: كور | F11: 5 | G11: 37 | H11: 185 | K11: 5 | M11: =IFERROR(IF(B$2="استلام خامات",(IF(E11="طن",G11/1000,IF(E11="كيلو",G11,IF(E11="جرام",G11*1000,IF(E11="كيس",H11/K11,IF(E11="كرتونة",G11,F11)))))),VLOOKUP(L11,[1]items!B:I,5,FALSE)),"") ->  | N11: 0
A12: 5 | B12: 5 | C12: سيلوتيب | F12: 5 | G12: 39 | H12: 195 | K12: 5 | M12: =IFERROR(IF(B$2="استلام خامات",(IF(E12="طن",G12/1000,IF(E12="كيلو",G12,IF(E12="جرام",G12*1000,IF(E12="كيس",H12/K12,IF(E12="كرتونة",G12,F12)))))),VLOOKUP(L12,[1]items!B:I,5,FALSE)),"") ->  | N12: 0
A13: 6 | B13: 6 | C13: لزق استرتش فيسيا | F13: 10 | G13: 41 | H13: =F13*G13 -> 410 | K13: 10 | M13: =IFERROR(IF(B$2="استلام خامات",(IF(E13="طن",G13/1000,IF(E13="كيلو",G13,IF(E13="جرام",G13*1000,IF(E13="كيس",H13/K13,IF(E13="كرتونة",G13,F13)))))),VLOOKUP(L13,[1]items!B:I,5,FALSE)),"") ->  | N13: 0
A14: 7 | B14: 7 | C14: مواد خامه | F14: 15 | G14: 43 | H14: =F14*G14 -> 645 | K14: 15 | M14: =IFERROR(IF(B$2="استلام خامات",(IF(E14="طن",G14/1000,IF(E14="كيلو",G14,IF(E14="جرام",G14*1000,IF(E14="كيس",H14/K14,IF(E14="كرتونة",G14,F14)))))),VLOOKUP(L14,[1]items!B:I,5,FALSE)),"") ->  | N14: 0
A15: 8 | H15: 0 | K15: 0 | M15: =IFERROR(IF(B$2="استلام خامات",(IF(E15="طن",G15/1000,IF(E15="كيلو",G15,IF(E15="جرام",G15*1000,IF(E15="كيس",H15/K15,IF(E15="كرتونة",G15,F15)))))),VLOOKUP(L15,[1]items!B:I,5,FALSE)),"") ->  | N15: 0
A16: 9 | H16: 0 | K16: 0 | M16: =IFERROR(IF(B$2="استلام خامات",(IF(E16="طن",G16/1000,IF(E16="كيلو",G16,IF(E16="جرام",G16*1000,IF(E16="كيس",H16/K16,IF(E16="كرتونة",G16,F16)))))),VLOOKUP(L16,[1]items!B:I,5,FALSE)),"") ->  | N16: 0
A17: 10 | H17: 0 | K17: 0 | M17: =IFERROR(IF(B$2="استلام خامات",(IF(E17="طن",G17/1000,IF(E17="كيلو",G17,IF(E17="جرام",G17*1000,IF(E17="كيس",H17/K17,IF(E17="كرتونة",G17,F17)))))),VLOOKUP(L17,[1]items!B:I,5,FALSE)),"") ->  | N17: 0
A18: 11 | H18: 0 | K18: 0 | M18: =IFERROR(IF(B$2="استلام خامات",(IF(E18="طن",G18/1000,IF(E18="كيلو",G18,IF(E18="جرام",G18*1000,IF(E18="كيس",H18/K18,IF(E18="كرتونة",G18,F18)))))),VLOOKUP(L18,[1]items!B:I,5,FALSE)),"") ->  | N18: 0
A19: 12 | H19: 0 | K19: 0 | M19: =IFERROR(IF(B$2="استلام خامات",(IF(E19="طن",G19/1000,IF(E19="كيلو",G19,IF(E19="جرام",G19*1000,IF(E19="كيس",H19/K19,IF(E19="كرتونة",G19,F19)))))),VLOOKUP(L19,[1]items!B:I,5,FALSE)),"") ->  | N19: 0
A20: 13 | H20: 0 | K20: 0 | M20: =IFERROR(IF(B$2="استلام خامات",(IF(E20="طن",G20/1000,IF(E20="كيلو",G20,IF(E20="جرام",G20*1000,IF(E20="كيس",H20/K20,IF(E20="كرتونة",G20,F20)))))),VLOOKUP(L20,[1]items!B:I,5,FALSE)),"") ->  | N20: 0
A21: 14 | H21: 0 | K21: 0 | M21: =IFERROR(IF(B$2="استلام خامات",(IF(E21="طن",G21/1000,IF(E21="كيلو",G21,IF(E21="جرام",G21*1000,IF(E21="كيس",H21/K21,IF(E21="كرتونة",G21,F21)))))),VLOOKUP(L21,[1]items!B:I,5,FALSE)),"") ->  | N21: 0
A22: 15 | H22: 0 | K22: 0 | M22: =IFERROR(IF(B$2="استلام خامات",(IF(E22="طن",G22/1000,IF(E22="كيلو",G22,IF(E22="جرام",G22*1000,IF(E22="كيس",H22/K22,IF(E22="كرتونة",G22,F22)))))),VLOOKUP(L22,[1]items!B:I,5,FALSE)),"") ->  | N22: 0
A23: 16 | H23: 0 | K23: 0 | M23: =IFERROR(IF(B$2="استلام خامات",(IF(E23="طن",G23/1000,IF(E23="كيلو",G23,IF(E23="جرام",G23*1000,IF(E23="كيس",H23/K23,IF(E23="كرتونة",G23,F23)))))),VLOOKUP(L23,[1]items!B:I,5,FALSE)),"") ->  | N23: 0
A24: 17 | H24: 0 | K24: 0 | M24: =IFERROR(IF(B$2="استلام خامات",(IF(E24="طن",G24/1000,IF(E24="كيلو",G24,IF(E24="جرام",G24*1000,IF(E24="كيس",H24/K24,IF(E24="كرتونة",G24,F24)))))),VLOOKUP(L24,[1]items!B:I,5,FALSE)),"") ->  | N24: 0
A25: 18 | H25: 0 | K25: 0 | M25: =IFERROR(IF(B$2="استلام خامات",(IF(E25="طن",G25/1000,IF(E25="كيلو",G25,IF(E25="جرام",G25*1000,IF(E25="كيس",H25/K25,IF(E25="كرتونة",G25,F25)))))),VLOOKUP(L25,[1]items!B:I,5,FALSE)),"") ->  | N25: 0
A26: 19 | H26: 0 | K26: 0 | M26: =IFERROR(IF(B$2="استلام خامات",(IF(E26="طن",G26/1000,IF(E26="كيلو",G26,IF(E26="جرام",G26*1000,IF(E26="كيس",H26/K26,IF(E26="كرتونة",G26,F26)))))),VLOOKUP(L26,[1]items!B:I,5,FALSE)),"") ->  | N26: 0
A27: 20 | H27: 0 | K27: 0 | M27: =IFERROR(IF(B$2="استلام خامات",(IF(E27="طن",G27/1000,IF(E27="كيلو",G27,IF(E27="جرام",G27*1000,IF(E27="كيس",H27/K27,IF(E27="كرتونة",G27,F27)))))),VLOOKUP(L27,[1]items!B:I,5,FALSE)),"") ->  | N27: 0
A28: 21 | H28: 0 | K28: 0 | M28: =IFERROR(IF(B$2="استلام خامات",(IF(E28="طن",G28/1000,IF(E28="كيلو",G28,IF(E28="جرام",G28*1000,IF(E28="كيس",H28/K28,IF(E28="كرتونة",G28,F28)))))),VLOOKUP(L28,[1]items!B:I,5,FALSE)),"") ->  | N28: 0
A29: 22 | H29: 0 | K29: 0 | M29: =IFERROR(IF(B$2="استلام خامات",(IF(E29="طن",G29/1000,IF(E29="كيلو",G29,IF(E29="جرام",G29*1000,IF(E29="كيس",H29/K29,IF(E29="كرتونة",G29,F29)))))),VLOOKUP(L29,[1]items!B:I,5,FALSE)),"") ->  | N29: 0
A30: 23 | H30: 0 | K30: 0 | M30: =IFERROR(IF(B$2="استلام خامات",(IF(E30="طن",G30/1000,IF(E30="كيلو",G30,IF(E30="جرام",G30*1000,IF(E30="كيس",H30/K30,IF(E30="كرتونة",G30,F30)))))),VLOOKUP(L30,[1]items!B:I,5,FALSE)),"") ->  | N30: 0
A31: 24 | H31: 0 | K31: 0 | M31: =IFERROR(IF(B$2="استلام خامات",(IF(E31="طن",G31/1000,IF(E31="كيلو",G31,IF(E31="جرام",G31*1000,IF(E31="كيس",H31/K31,IF(E31="كرتونة",G31,F31)))))),VLOOKUP(L31,[1]items!B:I,5,FALSE)),"") ->  | N31: 0
A32: 25 | H32: 0 | K32: 0 | M32: =IFERROR(IF(B$2="استلام خامات",(IF(E32="طن",G32/1000,IF(E32="كيلو",G32,IF(E32="جرام",G32*1000,IF(E32="كيس",H32/K32,IF(E32="كرتونة",G32,F32)))))),VLOOKUP(L32,[1]items!B:I,5,FALSE)),"") ->  | N32: 0
G33: الصافي قبل ض | H33: =SUM(H8:H32) -> 2900
G34: ض قيمة مضافة | H34: =IFERROR(IF(E$3<>"",H$33*0.14,0),0) -> 0
G35: ض الخصم | H35: =IFERROR(IF(E$3<>"",H$33*0.01,0),0) -> 0
G36: الصافي | H36: =H33+H34-H35 -> 2900

Sheet perform
A1: 0 | L1: =N2/K2 -> 36.25 | N1: =(K1*L1) -> 0 | P1: =COLUMN() -> 16 | Q1: =COLUMN() -> 17
A2: 0 | K2: =SUBTOTAL(9,K5:K48389) -> -80 | L2: =IFERROR(SUBTOTAL(1,L5:L47737),0) -> 37 | N2: =SUBTOTAL(9,N5:N47737) -> -2900 | Z2: =SUBTOTAL(9,Z5:Z47737) -> -80
A3: متابعة اذون
A4: م | B4: رقم الاذن | C4: تاريخ الاذن | D4: كود العميل | E4: اسم العميل | F4: رقم امر التوريد | G4: كود الصنف | H4: اسم الصنف | I4: المندوب | J4: الوحدة | K4: الكمية | L4: السعر | M4: كمية تسليم | N4: القيمة | O4: حالة الامر | P4: رقم الفاتورة | Q4: تاريخ الفاتورة | R4: كود الخامة | S4: صافي الكمية | T4: عجز الكمية | U4: نوع العجز | V4: نوع الحركة | W4: القيمة | X4: group | Y4: اذن العميل
A5: =IF((A4)<>"م",(A4)+1,1) -> 1 | B5: 260401 | C5: 2026-04-29 | D5: 350 | E5: test 4me | F5: test | G5: 1 | H5: خامة pvc شرنك | K5: -20 | L5: 31 | N5: =(K5*L5) -> -620 | P5: no | V5: صرف منتج تام | Z5: =IF(M5>0,M5*-1,K5) -> -20 | AA5: =IF(M5>0,(K5+M5)/K5,0) -> 0 | AB5: =MONTH(C5) -> 4
A6: =IF((A5)<>"م",(A5)+1,1) -> 2 | B6: 260401 | C6: 2026-04-29 | D6: 350 | E6: test 4me | F6: test | G6: 2 | H6: خامات استرتش | K6: -15 | L6: 33 | N6: =(K6*L6) -> -495 | P6: no | V6: صرف منتج تام | Z6: =IF(M6>0,M6*-1,K6) -> -15 | AA6: =IF(M6>0,(K6+M6)/K6,0) -> 0 | AB6: =MONTH(C6) -> 4
A7: =IF((A6)<>"م",(A6)+1,1) -> 3 | B7: 260401 | C7: 2026-04-29 | D7: 350 | E7: test 4me | F7: test | G7: 3 | H7: كرتون | K7: -10 | L7: 35 | N7: =(K7*L7) -> -350 | P7: no | V7: صرف منتج تام | Z7: =IF(M7>0,M7*-1,K7) -> -10 | AA7: =IF(M7>0,(K7+M7)/K7,0) -> 0 | AB7: =MONTH(C7) -> 4
A8: =IF((A7)<>"م",(A7)+1,1) -> 4 | B8: 260401 | C8: 2026-04-29 | D8: 350 | E8: test 4me | F8: test | G8: 4 | H8: كور | K8: -5 | L8: 37 | N8: =(K8*L8) -> -185 | P8: no | V8: صرف منتج تام | Z8: =IF(M8>0,M8*-1,K8) -> -5 | AA8: =IF(M8>0,(K8+M8)/K8,0) -> 0 | AB8: =MONTH(C8) -> 4
A9: =IF((A8)<>"م",(A8)+1,1) -> 5 | B9: 260401 | C9: 2026-04-29 | D9: 350 | E9: test 4me | F9: test | G9: 5 | H9: سيلوتيب | K9: -5 | L9: 39 | N9: =(K9*L9) -> -195 | P9: no | V9: صرف منتج تام | Z9: =IF(M9>0,M9*-1,K9) -> -5 | AA9: =IF(M9>0,(K9+M9)/K9,0) -> 0 | AB9: =MONTH(C9) -> 4
A10: =IF((A9)<>"م",(A9)+1,1) -> 6 | B10: 260401 | C10: 2026-04-29 | D10: 350 | E10: test 4me | F10: test | G10: 6 | H10: لزق استرتش فيسيا | K10: -10 | L10: 41 | N10: =(K10*L10) -> -410 | P10: no | V10: صرف منتج تام | Z10: =IF(M10>0,M10*-1,K10) -> -10 | AA10: =IF(M10>0,(K10+M10)/K10,0) -> 0 | AB10: =MONTH(C10) -> 4
A11: =IF((A10)<>"م",(A10)+1,1) -> 7 | B11: 260401 | C11: 2026-04-29 | D11: 350 | E11: test 4me | F11: test | G11: 7 | H11: مواد خامه | K11: -15 | L11: 43 | N11: =(K11*L11) -> -645 | P11: no | V11: صرف منتج تام | Z11: =IF(M11>0,M11*-1,K11) -> -15 | AA11: =IF(M11>0,(K11+M11)/K11,0) -> 0 | AB11: =MONTH(C11) -> 4

Sheet Accmove
O1: =COLUMN() -> 15 | P1: =COLUMN() -> 16 | Q1: =COLUMN() -> 17 | R1: =COLUMN() -> 18 | S1: =COLUMN() -> 19
A2: 0 | B2: الرصيد | H2: =SUBTOTAL(9,H$4:$H84149) -> 20300 | I2: =SUBTOTAL(9,$I$4:I84149) -> 0 | J2: =H2-I2 -> 20300 | L2: =SUBTOTAL(9,L4:L5) -> 0 | N2: =SUBTOTAL(9,N4:N5) -> 0
A3: م | B3: كود االحساب | C3: اسم الحساب | D3: رقم امر التوريد | E3: رقم الاذن | F3: يدوي | G3: تاريخ الحركة | H3: 0 | I3: دائن | J3: =SUMIFS(H3:H$4,B3:B$4,B3)-SUMIFS(I3:I$4,B3:B$4,B3) -> 0 | L3: ض مبيعات | N3: ض ا ت ص | O3: التصنيف | P3: نوع الحركة | Q3: group | R3: الاذن مسلسل | S3: البيان | T3: التوجيه | U3: مدين $ | V3: دائن $
A4: =ROW()-3 -> 1 | B4: 350 | C4: test 4me | E4: 260401 | F4: test | G4: 46141 | H4: 2900 | J4: =SUMIFS(H$4:H4,B$4:B4,B4)-SUMIFS(I$4:I4,B$4:B4,B4) -> 2900 | K4: 20 | L4: 0 | N4: 0 | P4: صرف منتج تام | T4: =MONTH(G4) -> 4
A5: =ROW()-3 -> 2 | B5: 350 | C5: test 4me | E5: 260401 | F5: test | G5: 46141 | H5: 2900 | J5: =SUMIFS(H$4:H5,B$4:B5,B5)-SUMIFS(I$4:I5,B$4:B5,B5) -> 5800 | K5: 15 | L5: 0 | N5: 0 | P5: صرف منتج تام | T5: =MONTH(G5) -> 4
A6: =ROW()-3 -> 3 | B6: 350 | C6: test 4me | E6: 260401 | F6: test | G6: 46141 | H6: 2900 | J6: =SUMIFS(H$4:H6,B$4:B6,B6)-SUMIFS(I$4:I6,B$4:B6,B6) -> 8700 | K6: 10 | L6: 0 | N6: 0 | P6: صرف منتج تام | T6: =MONTH(G6) -> 4
A7: =ROW()-3 -> 4 | B7: 350 | C7: test 4me | E7: 260401 | F7: test | G7: 46141 | H7: 2900 | J7: =SUMIFS(H$4:H7,B$4:B7,B7)-SUMIFS(I$4:I7,B$4:B7,B7) -> 11600 | K7: 5 | L7: 0 | N7: 0 | P7: صرف منتج تام | T7: =MONTH(G7) -> 4
A8: =ROW()-3 -> 5 | B8: 350 | C8: test 4me | E8: 260401 | F8: test | G8: 46141 | H8: 2900 | J8: =SUMIFS(H$4:H8,B$4:B8,B8)-SUMIFS(I$4:I8,B$4:B8,B8) -> 14500 | K8: 5 | L8: 0 | N8: 0 | P8: صرف منتج تام | T8: =MONTH(G8) -> 4
A9: =ROW()-3 -> 6 | B9: 350 | C9: test 4me | E9: 260401 | F9: test | G9: 46141 | H9: 2900 | J9: =SUMIFS(H$4:H9,B$4:B9,B9)-SUMIFS(I$4:I9,B$4:B9,B9) -> 17400 | K9: 10 | L9: 0 | N9: 0 | P9: صرف منتج تام | T9: =MONTH(G9) -> 4
A10: =ROW()-3 -> 7 | B10: 350 | C10: test 4me | E10: 260401 | F10: test | G10: 46141 | H10: 2900 | J10: =SUMIFS(H$4:H10,B$4:B10,B10)-SUMIFS(I$4:I10,B$4:B10,B10) -> 20300 | K10: 15 | L10: 0 | N10: 0 | P10: صرف منتج تام | T10: =MONTH(G10) -> 4

Sheet AccMove D
A1: 0
A2: 0
A3: 0
A4: م | B4: رقم الاذن | C4: التاريخ | D4: كود المورد | E4: اسم المورد | F4: رقم امر التوريد | G4: كود الصنف | H4: اسم الصنف | I4: المندوب | J4: الوحدة | K4: الكمية | L4: السعر | M4: كمية تسليم | N4: القيمة | O4: حالة الامر | P4: رقم الفاتورة | Q4: تاريخ الفاتورة | R4: كود الخامة | S4: صافي الكمية | T4: عجز الكمية | U4: نوع العجز | V4: نوع الحركة | W4: قيمة الاذن | X4: مدين | Y4: دائن | Z4: رصيد
A5: =ROW()-4 -> 1 | B5: 260401 | C5: 2026-04-29 | D5: 350 | E5: test 4me | F5: test | G5: 1 | H5: خامة pvc شرنك | K5: 20 | L5: 31 | N5: =(K5*L5) -> 620 | P5: no | V5: صرف منتج تام | W5: =IF(B5<>B4,SUMIFS(N:N,B:B,B5,V:V,V5),0) -> 2900 | X5: =IF(OR(V5<>V4,B5<>B4),SUMIFS(N:N,B:B,B5,V:V,V5),0) -> 2900 | Z5: =SUMIFS(X$4:X5,D$4:D5,D5)-SUMIFS(Y$4:Y5,D$4:D5,D5) -> 2900
A6: =ROW()-4 -> 2 | B6: 260401 | C6: 2026-04-29 | D6: 350 | E6: test 4me | F6: test | G6: 2 | H6: خامات استرتش | K6: 15 | L6: 33 | N6: =(K6*L6) -> 495 | P6: no | V6: صرف منتج تام | W6: =IF(B6<>B5,SUMIFS(N:N,B:B,B6,V:V,V6),0) -> 0 | X6: =IF(OR(V6<>V5,B6<>B5),SUMIFS(N:N,B:B,B6,V:V,V6),0) -> 0 | Z6: =SUMIFS(X$4:X6,D$4:D6,D6)-SUMIFS(Y$4:Y6,D$4:D6,D6) -> 2900
A7: =ROW()-4 -> 3 | B7: 260401 | C7: 2026-04-29 | D7: 350 | E7: test 4me | F7: test | G7: 3 | H7: كرتون | K7: 10 | L7: 35 | N7: =(K7*L7) -> 350 | P7: no | V7: صرف منتج تام | W7: =IF(B7<>B6,SUMIFS(N:N,B:B,B7,V:V,V7),0) -> 0 | X7: =IF(OR(V7<>V6,B7<>B6),SUMIFS(N:N,B:B,B7,V:V,V7),0) -> 0 | Z7: =SUMIFS(X$4:X7,D$4:D7,D7)-SUMIFS(Y$4:Y7,D$4:D7,D7) -> 2900
A8: =ROW()-4 -> 4 | B8: 260401 | C8: 2026-04-29 | D8: 350 | E8: test 4me | F8: test | G8: 4 | H8: كور | K8: 5 | L8: 37 | N8: =(K8*L8) -> 185 | P8: no | V8: صرف منتج تام | W8: =IF(B8<>B7,SUMIFS(N:N,B:B,B8,V:V,V8),0) -> 0 | X8: =IF(OR(V8<>V7,B8<>B7),SUMIFS(N:N,B:B,B8,V:V,V8),0) -> 0 | Z8: =SUMIFS(X$4:X8,D$4:D8,D8)-SUMIFS(Y$4:Y8,D$4:D8,D8) -> 2900
A9: =ROW()-4 -> 5 | B9: 260401 | C9: 2026-04-29 | D9: 350 | E9: test 4me | F9: test | G9: 5 | H9: سيلوتيب | K9: 5 | L9: 39 | N9: =(K9*L9) -> 195 | P9: no | V9: صرف منتج تام | W9: =IF(B9<>B8,SUMIFS(N:N,B:B,B9,V:V,V9),0) -> 0 | X9: =IF(OR(V9<>V8,B9<>B8),SUMIFS(N:N,B:B,B9,V:V,V9),0) -> 0 | Z9: =SUMIFS(X$4:X9,D$4:D9,D9)-SUMIFS(Y$4:Y9,D$4:D9,D9) -> 2900
A10: =ROW()-4 -> 6 | B10: 260401 | C10: 2026-04-29 | D10: 350 | E10: test 4me | F10: test | G10: 6 | H10: لزق استرتش فيسيا | K10: 10 | L10: 41 | N10: =(K10*L10) -> 410 | P10: no | V10: صرف منتج تام | W10: =IF(B10<>B9,SUMIFS(N:N,B:B,B10,V:V,V10),0) -> 0 | X10: =IF(OR(V10<>V9,B10<>B9),SUMIFS(N:N,B:B,B10,V:V,V10),0) -> 0 | Z10: =SUMIFS(X$4:X10,D$4:D10,D10)-SUMIFS(Y$4:Y10,D$4:D10,D10) -> 2900
A11: =ROW()-4 -> 7 | B11: 260401 | C11: 2026-04-29 | D11: 350 | E11: test 4me | F11: test | G11: 7 | H11: مواد خامه | K11: 15 | L11: 43 | N11: =(K11*L11) -> 645 | P11: no | V11: صرف منتج تام | W11: =IF(B11<>B10,SUMIFS(N:N,B:B,B11,V:V,V11),0) -> 0 | X11: =IF(OR(V11<>V10,B11<>B10),SUMIFS(N:N,B:B,B11,V:V,V11),0) -> 0 | Z11: =SUMIFS(X$4:X11,D$4:D11,D11)-SUMIFS(Y$4:Y11,D$4:D11,D11) -> 2900

Sheet itemmove
C1: =COLUMN() -> 3 | E1: =COLUMN() -> 5 | F1: =COLUMN() -> 6 | I1: =COLUMN() -> 9 | J1: =COLUMN() -> 10 | M1: =COLUMN() -> 13 | P1: =COLUMN() -> 16 | S1: =COLUMN() -> 19
A2: 0 | B2: حركات الاصناف
A3: 0 | G3: الرصيد | I3: =SUBTOTAL(9,I1003:I3914) -> 0 | J3: =SUBTOTAL(9,J1003:J3914) -> 0 | M3: =I3-J3 -> 0
A4: م | B4: كود الصنف | C4: اسم الصنف | D4: المواصفات | E4: الوحدة | F4: نوع الحركة | G4: رقم الاذن | H4: رقم الفاتورة | I4: كمية الاضافة / كيلو | J4: كمية الصرف /كيلو | K4: الرصيد | L4: المورد او العميل | M4: التكلفة/ الكيلو | N4: سعر البيع | P4: رقم اذن العميل | Q4: كمية المنتج التام | R4: كمية المكون | S4: الرصيد
A5: =IF((A4)<>"م",(A4)+1,1) -> 1 | B5: 1 | C5: خامة pvc شرنك | F5: صرف منتج تام | G5: 260401 | H5: test | J5: 20 | K5: =SUMIFS(I$5:I5,B$5:B5,B5)-SUMIFS(J$5:J5,B$5:B5,B5) -> -20 | L5: 350 | O5: 2026-04-29
A6: =IF((A5)<>"م",(A5)+1,1) -> 2 | B6: 2 | C6: خامات استرتش | F6: صرف منتج تام | G6: 260401 | H6: test | J6: 15 | K6: =SUMIFS(I$5:I6,B$5:B6,B6)-SUMIFS(J$5:J6,B$5:B6,B6) -> -15 | L6: 350 | O6: 2026-04-29
A7: =IF((A6)<>"م",(A6)+1,1) -> 3 | B7: 3 | C7: كرتون | F7: صرف منتج تام | G7: 260401 | H7: test | J7: 10 | K7: =SUMIFS(I$5:I7,B$5:B7,B7)-SUMIFS(J$5:J7,B$5:B7,B7) -> -10 | L7: 350 | O7: 2026-04-29
A8: =IF((A7)<>"م",(A7)+1,1) -> 4 | B8: 4 | C8: كور | F8: صرف منتج تام | G8: 260401 | H8: test | J8: 5 | K8: =SUMIFS(I$5:I8,B$5:B8,B8)-SUMIFS(J$5:J8,B$5:B8,B8) -> -5 | L8: 350 | O8: 2026-04-29
A9: =IF((A8)<>"م",(A8)+1,1) -> 5 | B9: 5 | C9: سيلوتيب | F9: صرف منتج تام | G9: 260401 | H9: test | J9: 5 | K9: =SUMIFS(I$5:I9,B$5:B9,B9)-SUMIFS(J$5:J9,B$5:B9,B9) -> -5 | L9: 350 | O9: 2026-04-29
A10: =IF((A9)<>"م",(A9)+1,1) -> 6 | B10: 6 | C10: لزق استرتش فيسيا | F10: صرف منتج تام | G10: 260401 | H10: test | J10: 10 | K10: =SUMIFS(I$5:I10,B$5:B10,B10)-SUMIFS(J$5:J10,B$5:B10,B10) -> -10 | L10: 350 | O10: 2026-04-29
A11: =IF((A10)<>"م",(A10)+1,1) -> 7 | B11: 7 | C11: مواد خامه | F11: صرف منتج تام | G11: 260401 | H11: test | J11: 15 | K11: =SUMIFS(I$5:I11,B$5:B11,B11)-SUMIFS(J$5:J11,B$5:B11,B11) -> -15 | L11: 350 | O11: 2026-04-29
